Workbook

Sheet Votanti
B2: ELEZIONI POLITICHE del 4 MARZO 2018 - SENATO della REPUBBLICA
C4: TOTALE ELETTORI SENATO | J4: VOTANTI
J5: Chiusura Seggi
B6: SEZ | C6: M | D6: F | E6: TOT | F6: SEZ | I6: SEZ | J6: M | K6: F | L6: TOT | M6: SEZ
B7: 1 | C7: 369 | D7: 412 | E7: =SUM(C7:D7) -> 781 | F7: 1 | I7: 1 | J7: 284 | K7: 283 | L7: =SUM(J7:K7) -> 567 | M7: 1 | N7: =IFERROR(SUM(L7/E7%/100),0%) -> 0.7259923175
B8: 2 | C8: 314 | D8: 375 | E8: 689 | F8: 2 | I8: 2 | J8: 238 | K8: 270 | L8: 508 | M8: 2 | N8: =IFERROR(SUM(L8/E8%/100),0%) -> 0.7373004354
B9: 3 | C9: 337 | D9: 387 | E9: 724 | F9: 3 | I9: 3 | J9: 248 | K9: 243 | L9: 491 | M9: 3 | N9: 0.6781767956
B10: 4 | C10: 435 | D10: 484 | E10: 919 | F10: 4 | I10: 4 | J10: 335 | K10: 340 | L10: 675 | M10: 4 | N10: 0.7344940152
B11: 5 | C11: 366 | D11: 396 | E11: 762 | F11: 5 | I11: 5 | J11: 282 | K11: 270 | L11: 552 | M11: 5 | N11: 0.7244094488
B12: 6 | C12: 348 | D12: 418 | E12: 766 | F12: 6 | I12: 6 | J12: 259 | K12: 276 | L12: 535 | M12: 6 | N12: 0.6984334204
C13: =SUM(C7:C12) -> 2169 | D13: =SUM(D7:D12) -> 2472 | E13: =SUM(E7:E12) -> 4641 | J13: =SUM(J7:J12) -> 1646 | K13: =SUM(K7:K12) -> 1682 | L13: 3328
C14: =IFERROR(SUM(C13/E13%/100),0%) -> 0.4673561732 | D14: =IFERROR(SUM(D13/E13%/100),0%) -> 0.5326438268 | E14: =SUM(C14:D14) -> 1 | J14: =IFERROR(SUM(J13/C13%/100),0%) -> 0.7588750576 | K14: =IFERROR(SUM(K13/D13%/100),0%) -> 0.680420712 | L14: 0.7170868347

Sheet Scrutinio
O4: =SUM(B16) -> 6 | U4: =IF(O4=0,"sezioni su 6",IF(O4=1,"sezione su 6","sezioni su 6")) -> sezioni su 6
O5: CANDIDATO
O6: 1 | P6: 2 | Q6: 3 | R6: 4 | S6: 5 | T6: 6 | U6: 7 | V6: 8 | W6: 9 | X6: 10 | Y6: 11
O7: BIZZARRO | P7: MARTIGNANO | Q7: ROMANO | R7: BELLANOVA | S7: DE CARLO | T7: ADASHA | U7: LECCISO | V7: LEZZI | W7: CARIDDI | X7: D'ALEMA | Y7: SCAVO
C9: ELETTORI | F9: VOTANTI | K9: VOTI NON VALIDI | P9: Rocco Antonio
B10: SEZ | C10: M | D10: F | E10: TOT | F10: M | G10: F | H10: TOT | I10: % VOTANTI | J10: SEZ | K10: BIANCHE | L10: NULLE | M10: CONTESTATE O NON ATTRIBUITE | N10: TOT. | P10: CONTE
B11: 1 | C11: =Votanti!C7 -> 369 | D11: =Votanti!D7 -> 412 | E11: =Votanti!E7 -> 781 | F11: =Votanti!J7 -> 284 | G11: =Votanti!K7 -> 283 | H11: =Votanti!L7 -> 567 | I11: =Votanti!N7 -> 0.7259923175 | J11: 1 | K11: =SEZ.1!E11 -> 17 | L11: =SEZ.1!E12 -> 13 | M11: =SEZ.1!E13 -> 0 | N11: =SUM(K11:M11) -> 30 | O11: ='1'!$D$5 -> 7 | P11: ='1'!$D$7 -> 3 | Q11: ='1'!$D$9 -> 1 | R11: ='1'!$D$10 -> 65 | S11: ='1'!$D$16 -> 5 | T11: ='1'!$D$18 -> 1 | U11: ='1'!$D$20 -> 1 | V11: ='1'!$D$22 -> 170 | W11: ='1'!$D$23 -> 273 | X11: ='1'!$D$29 -> 11 | Y11: ='1'!$D$31 -> 0 | AB11: =IF(H11>"0",IF(H11=AA11,"OK",H11-AA11),"") -> 
B12: 2 | C12: =Votanti!C8 -> 314 | D12: =Votanti!D8 -> 375 | E12: =Votanti!E8 -> 689 | F12: =Votanti!J8 -> 238 | G12: =Votanti!K8 -> 270 | H12: =Votanti!L8 -> 508 | I12: =Votanti!N8 -> 0.7373004354 | J12: 2 | K12: =SEZ.2!E11 -> 11 | L12: =SEZ.2!E12 -> 8 | M12: =SEZ.2!E13 -> 0 | N12: =SUM(K12:M12) -> 19 | O12: ='2'!$D$5 -> 5 | P12: ='2'!$D$7 -> 2 | Q12: ='2'!$D$9 -> 1 | R12: ='2'!$D$10 -> 105 | S12: ='2'!$D$16 -> 7 | T12: ='2'!$D$18 -> 1 | U12: ='2'!$D$20 -> 0 | V12: ='2'!$D$22 -> 144 | W12: ='2'!$D$23 -> 212 | X12: ='2'!$D$29 -> 11 | Y12: ='2'!$D$31 -> 1 | AB12: =IF(H12>"0",IF(H12=AA12,"OK",H12-AA12),"") -> 
B13: 3 | C13: =Votanti!C9 -> 337 | D13: =Votanti!D9 -> 387 | E13: =Votanti!E9 -> 724 | F13: =Votanti!J9 -> 248 | G13: =Votanti!K9 -> 243 | H13: =Votanti!L9 -> 491 | I13: =Votanti!N9 -> 0.6781767956 | J13: 3 | K13: =SEZ.3!E11 -> 11 | L13: =SEZ.3!E12 -> 6 | M13: =SEZ.3!E13 -> 0 | N13: 17 | O13: ='3'!$D$5 -> 6 | P13: ='3'!$D$7 -> 2 | Q13: ='3'!$D$9 -> 0 | R13: ='3'!$D$10 -> 60 | S13: ='3'!$D$16 -> 4 | T13: ='3'!$D$18 -> 2 | U13: ='3'!$D$20 -> 0 | V13: ='3'!$D$22 -> 144 | W13: ='3'!$D$23 -> 239 | X13: ='3'!$D$29 -> 17 | Y13: ='3'!$D$31 -> 0
B14: 4 | C14: =Votanti!C10 -> 435 | D14: =Votanti!D10 -> 484 | E14: =Votanti!E10 -> 919 | F14: =Votanti!J10 -> 335 | G14: =Votanti!K10 -> 340 | H14: =Votanti!L10 -> 675 | I14: =Votanti!N10 -> 0.7344940152 | J14: 4 | K14: =SEZ.4!E11 -> 17 | L14: =SEZ.4!E12 -> 9 | M14: =SEZ.4!E13 -> 0 | N14: 26 | O14: ='4'!$D$5 -> 9 | P14: ='4'!$D$7 -> 4 | Q14: ='4'!$D$9 -> 1 | R14: ='4'!$D$10 -> 93 | S14: ='4'!$D$16 -> 11 | T14: ='4'!$D$18 -> 1 | U14: ='4'!$D$20 -> 3 | V14: ='4'!$D$22 -> 221 | W14: ='4'!$D$23 -> 285 | X14: ='4'!$D$29 -> 21 | Y14: ='4'!$D$31 -> 0
B15: 5 | C15: =Votanti!C11 -> 366 | D15: =Votanti!D11 -> 396 | E15: =Votanti!E11 -> 762 | F15: =Votanti!J11 -> 282 | G15: =Votanti!K11 -> 270 | H15: =Votanti!L11 -> 552 | I15: =Votanti!N11 -> 0.7244094488 | J15: 5 | K15: =SEZ.5!E11 -> 15 | L15: =SEZ.5!E12 -> 19 | M15: =SEZ.5!E13 -> 0 | N15: 34 | O15: ='5'!$D$5 -> 4 | P15: ='5'!$D$7 -> 3 | Q15: ='5'!$D$9 -> 0 | R15: ='5'!$D$10 -> 79 | S15: ='5'!$D$16 -> 1 | T15: ='5'!$D$18 -> 3 | U15: ='5'!$D$20 -> 1 | V15: ='5'!$D$22 -> 157 | W15: ='5'!$D$23 -> 255 | X15: ='5'!$D$29 -> 14 | Y15: ='5'!$D$31 -> 1
B16: 6 | C16: =Votanti!C12 -> 348 | D16: =Votanti!D12 -> 418 | E16: =Votanti!E12 -> 766 | F16: =Votanti!J12 -> 259 | G16: =Votanti!K12 -> 276 | H16: =Votanti!L12 -> 535 | I16: =Votanti!N12 -> 0.6984334204 | J16: 6 | K16: =SEZ.6!E11 -> 8 | L16: =SEZ.6!E12 -> 29 | M16: =SEZ.6!E13 -> 0 | N16: 37 | O16: ='6'!$D$5 -> 8 | P16: ='6'!$D$7 -> 5 | Q16: ='6'!$D$9 -> 0 | R16: ='6'!$D$10 -> 72 | S16: ='6'!$D$16 -> 8 | T16: ='6'!$D$18 -> 1 | U16: ='6'!$D$20 -> 1 | V16: ='6'!$D$22 -> 184 | W16: ='6'!$D$23 -> 202 | X16: ='6'!$D$29 -> 17 | Y16: ='6'!$D$31 -> 0
C17: =SUM(C11:C16) -> 2169 | D17: =SUM(D11:D16) -> 2472 | E17: =SUM(E11:E16) -> 4641 | F17: =SUM(F11:F16) -> 1646 | G17: =SUM(G11:G16) -> 1682 | H17: =SUM(F17:G17) -> 3328 | K17: =SUM(K11:K16) -> 79 | L17: =SUM(L11:L16) -> 84 | M17: =SUM(M11:M16) -> 0 | N17: =SUM(K17:M17) -> 163 | O17: =SUM(O11:O16) -> 39 | P17: 19 | Q17: 3 | R17: 474 | S17: 36 | T17: 9 | U17: 6 | V17: 1020 | W17: 1466 | X17: 91 | Y17: 2
C18: =Votanti!C14 -> 0.4673561732 | D18: =Votanti!D14 -> 0.5326438268 | E18: =Votanti!E14 -> 1 | F18: =Votanti!J14 -> 0.7588750576 | G18: =Votanti!K14 -> 0.680420712 | H18: =Votanti!L14 -> 0.7170868347 | K18: =IFERROR(SUM(K17/$H$17%/100),0%) -> 0.02373798077 | L18: 0.02524038462 | M18: 0 | N18: =IFERROR(SUM(N17/$H$17%/100),0%) -> 0.04897836538 | O18: =O17/H17 -> 0.01171875 | P18: =P17/H17 -> 0.005709134615 | Q18: =Q17/H17 -> 0.0009014423077 | R18: =R17/H17 -> 0.1424278846 | S18: =S17/H17 -> 0.01081730769 | T18: =T17/H17 -> 0.002704326923 | U18: =U17/H17 -> 0.001802884615 | V18: =V17/H17 -> 0.3064903846 | W18: =W17/H17 -> 0.4405048077 | X18: =X17/H17 -> 0.02734375 | Y18: =Y17/H17 -> 0.0006009615385
C19: ELETTORI | F19: VOTANTI
N20: =IF(Q20>0,RANK(Q20,$Q$20:$Q$30),"") -> 1 | O20: =INDEX(Candidati!$C$4:$C$14,MATCH(LARGE(Candidati!$D$4:$D$14-ROW(Candidati!$D$4:$D$14)/100,ROW(N20)-ROW($K$19)),Candidati!$D$4:$D$14-ROW(Candidati!$D$4:$D$14)/100,0)) -> CARIDDI | Q20: =VLOOKUP(O20,Candidati!$C$3:$D$14,2,0) -> 1466
N21: 2 | O21: =INDEX(Candidati!$C$4:$C$14,MATCH(LARGE(Candidati!$D$4:$D$14-ROW(Candidati!$D$4:$D$14)/100,ROW(N21)-ROW($K$19)),Candidati!$D$4:$D$14-ROW(Candidati!$D$4:$D$14)/100,0)) -> LEZZI | Q21: =VLOOKUP(O21,Candidati!$C$3:$D$14,2,0) -> 1020
N22: 3 | O22: =INDEX(Candidati!$C$4:$C$14,MATCH(LARGE(Candidati!$D$4:$D$14-ROW(Candidati!$D$4:$D$14)/100,ROW(N22)-ROW($K$19)),Candidati!$D$4:$D$14-ROW(Candidati!$D$4:$D$14)/100,0)) -> BELLANOVA | Q22: =VLOOKUP(O22,Candidati!$C$3:$D$14,2,0) -> 474
N23: 4 | O23: =INDEX(Candidati!$C$4:$C$14,MATCH(LARGE(Candidati!$D$4:$D$14-ROW(Candidati!$D$4:$D$14)/100,ROW(N23)-ROW($K$19)),Candidati!$D$4:$D$14-ROW(Candidati!$D$4:$D$14)/100,0)) -> D'ALEMA | Q23: =VLOOKUP(O23,Candidati!$C$3:$D$14,2,0) -> 91
N24: 5 | O24: =INDEX(Candidati!$C$4:$C$14,MATCH(LARGE(Candidati!$D$4:$D$14-ROW(Candidati!$D$4:$D$14)/100,ROW(N24)-ROW($K$19)),Candidati!$D$4:$D$14-ROW(Candidati!$D$4:$D$14)/100,0)) -> BIZZARRO | Q24: =VLOOKUP(O24,Candidati!$C$3:$D$14,2,0) -> 39
N25: 6 | O25: =INDEX(Candidati!$C$4:$C$14,MATCH(LARGE(Candidati!$D$4:$D$14-ROW(Candidati!$D$4:$D$14)/100,ROW(N25)-ROW($K$19)),Candidati!$D$4:$D$14-ROW(Candidati!$D$4:$D$14)/100,0)) -> DE CARLO | Q25: =VLOOKUP(O25,Candidati!$C$3:$D$14,2,0) -> 36
N26: 7 | O26: =INDEX(Candidati!$C$4:$C$14,MATCH(LARGE(Candidati!$D$4:$D$14-ROW(Candidati!$D$4:$D$14)/100,ROW(N26)-ROW($K$19)),Candidati!$D$4:$D$14-ROW(Candidati!$D$4:$D$14)/100,0)) -> MARTIGNANO | Q26: =VLOOKUP(O26,Candidati!$C$3:$D$14,2,0) -> 19
N27: 8 | O27: =INDEX(Candidati!$C$4:$C$14,MATCH(LARGE(Candidati!$D$4:$D$14-ROW(Candidati!$D$4:$D$14)/100,ROW(N27)-ROW($K$19)),Candidati!$D$4:$D$14-ROW(Candidati!$D$4:$D$14)/100,0)) -> ADASHA | Q27: =VLOOKUP(O27,Candidati!$C$3:$D$14,2,0) -> 9
N28: 9 | O28: =INDEX(Candidati!$C$4:$C$14,MATCH(LARGE(Candidati!$D$4:$D$14-ROW(Candidati!$D$4:$D$14)/100,ROW(N28)-ROW($K$19)),Candidati!$D$4:$D$14-ROW(Candidati!$D$4:$D$14)/100,0)) -> LECCISO | Q28: =VLOOKUP(O28,Candidati!$C$3:$D$14,2,0) -> 6
N29: 10 | O29: =INDEX(Candidati!$C$4:$C$14,MATCH(LARGE(Candidati!$D$4:$D$14-ROW(Candidati!$D$4:$D$14)/100,ROW(N29)-ROW($K$19)),Candidati!$D$4:$D$14-ROW(Candidati!$D$4:$D$14)/100,0)) -> ROMANO | Q29: =VLOOKUP(O29,Candidati!$C$3:$D$14,2,0) -> 3
N30: 11 | O30: =INDEX(Candidati!$C$4:$C$14,MATCH(LARGE(Candidati!$D$4:$D$14-ROW(Candidati!$D$4:$D$14)/100,ROW(N30)-ROW($K$19)),Candidati!$D$4:$D$14-ROW(Candidati!$D$4:$D$14)/100,0)) -> SCAVO | Q30: =VLOOKUP(O30,Candidati!$C$3:$D$14,2,0) -> 2

Sheet SEZ.1
C2: VOTANTI SENATO
C5: Maschi | E5: =Votanti!J7 -> 284
C6: Femmine | E6: =Votanti!K7 -> 283
C7: TOTALE VOTANTI | E7: =SUM(E5:E6) -> 567 | F7: =IF(E9="","",IF(E7=(E9+E14),"OK!","ERRORE")) -> 
C9: a | D9: TOTALE voti validi
C11: SCHEDE BIANCHE | E11: 17
C12: SCHEDE NULLE | E12: 13
C13: SCHEDE contestate e provvisoriamente non attribuite
C14: b | D14: TOTALE Schede NON VALIDE | E14: =SUM(E11:E13) -> 30
D16: =IF(E16<"","TOTALE (a) + (b)","") ->  | E16: =IF(E9="","",IF(E9+E14=E7,"",E9+E14)) ->  | F16: =IF(E9="","",IF(E9+E14=E7,"",E9+E14-E7)) -> 

Sheet SEZ.2
C2: VOTANTI SENATO
C5: Maschi | E5: =Votanti!J8 -> 238
C6: Femmine | E6: =Votanti!K8 -> 270
C7: TOTALE VOTANTI | E7: =SUM(E5:E6) -> 508 | F7: =IF(E12="","",IF(E7=(E9+E14),"OK!","ERRORE")) -> ERRORE
C9: a | D9: TOTALE voti validi
C11: SCHEDE BIANCHE | E11: 11
C12: SCHEDE NULLE | E12: 8
C13: SCHEDE contestate e provvisoriamente non attribuite
C14: b | D14: TOTALE Schede NON VALIDE | E14: =SUM(E11:E13) -> 19
D16: =IF(E16<"","TOTALE (a) + (b)","") ->  | E16: =IF(E9="","",IF(E9+E14=E7,"",E9+E14)) ->  | F16: =IF(E9="","",IF(E9+E14=E7,"",E9+E14-E7)) -> 

Sheet SEZ.3
C2: VOTANTI SENATO
C5: Maschi | E5: =Votanti!J9 -> 248
C6: Femmine | E6: =Votanti!K9 -> 243
C7: TOTALE VOTANTI | E7: =SUM(E5:E6) -> 491 | F7: =IF(E12="","",IF(E7=(E9+E14),"OK!","ERRORE")) -> ERRORE
C9: a | D9: TOTALE voti validi
C11: SCHEDE BIANCHE | E11: 11
C12: SCHEDE NULLE | E12: 6
C13: SCHEDE contestate e provvisoriamente non attribuite
C14: b | D14: TOTALE Schede NON VALIDE | E14: =SUM(E11:E13) -> 17
D16: =IF(E16<"","TOTALE (a) + (b)","") ->  | E16: =IF(E9="","",IF(E9+E14=E7,"",E9+E14)) ->  | F16: =IF(E9="","",IF(E9+E14=E7,"",E9+E14-E7)) -> 

Sheet SEZ.4
C2: VOTANTI SENATO
C5: Maschi | E5: =Votanti!J10 -> 335
C6: Femmine | E6: =Votanti!K10 -> 340
C7: TOTALE VOTANTI | E7: =SUM(E5:E6) -> 675 | F7: =IF(E12="","",IF(E7=(E9+E14),"OK!","ERRORE")) -> ERRORE
C9: a | D9: TOTALE voti validi
C11: SCHEDE BIANCHE | E11: 17
C12: SCHEDE NULLE | E12: 9
C13: SCHEDE contestate e provvisoriamente non attribuite
C14: b | D14: TOTALE Schede NON VALIDE | E14: =SUM(E11:E13) -> 26
D16: =IF(E16<"","TOTALE (a) + (b)","") ->  | E16: =IF(E9="","",IF(E9+E14=E7,"",E9+E14)) ->  | F16: =IF(E9="","",IF(E9+E14=E7,"",E9+E14-E7)) -> 

Sheet SEZ.5
C2: VOTANTI SENATO
C5: Maschi | E5: =Votanti!J11 -> 282
C6: Femmine | E6: =Votanti!K11 -> 270
C7: TOTALE VOTANTI | E7: =SUM(E5:E6) -> 552 | F7: =IF(E12="","",IF(E7=(E9+E14),"OK!","ERRORE")) -> ERRORE
C9: a | D9: TOTALE voti validi
C11: SCHEDE BIANCHE | E11: 15
C12: SCHEDE NULLE | E12: 19
C13: SCHEDE contestate e provvisoriamente non attribuite
C14: b | D14: TOTALE Schede NON VALIDE | E14: =SUM(E11:E13) -> 34
D16: =IF(E16<"","TOTALE (a) + (b)","") ->  | E16: =IF(E9="","",IF(E9+E14=E7,"",E9+E14)) ->  | F16: =IF(E9="","",IF(E9+E14=E7,"",E9+E14-E7)) -> 

Sheet SEZ.6
C2: VOTANTI SENATO
C5: Maschi | E5: =Votanti!J12 -> 259
C6: Femmine | E6: =Votanti!K12 -> 276
C7: TOTALE VOTANTI | E7: =SUM(E5:E6) -> 535 | F7: =IF(E12="","",IF(E7=(E9+E14),"OK!","ERRORE")) -> ERRORE
C9: a | D9: TOTALE voti validi
C11: SCHEDE BIANCHE | E11: 8
C12: SCHEDE NULLE | E12: 29
C13: SCHEDE contestate e provvisoriamente non attribuite
C14: b | D14: TOTALE Schede NON VALIDE | E14: =SUM(E11:E13) -> 37
D16: =IF(E16<"","TOTALE (a) + (b)","") ->  | E16: =IF(E9="","",IF(E9+E14=E7,"",E9+E14)) ->  | F16: =IF(E9="","",IF(E9+E14=E7,"",E9+E14-E7)) -> 

Sheet Totali
C2: TOTALE VOTANTI SENATO
C5: Maschi | F5: =SUM(SEZ.1!E5,SEZ.2!E5,SEZ.3!E5,SEZ.4!E5,SEZ.5!E5,SEZ.6!E5) -> 1646
C6: Femmine | F6: =SUM(SEZ.1!E6,SEZ.2!E6,SEZ.3!E6,SEZ.4!E6,SEZ.5!E6,SEZ.6!E6) -> 1682
C7: TOTALE VOTANTI | F7: =SUM(F5:F6) -> 3328
C9: Totale VOTI VALIDI | F9: =SUM(SEZ.1!E9,SEZ.2!E9,SEZ.3!E9,SEZ.4!E9,SEZ.5!E9,SEZ.6!E9) -> 0
C11: SCHEDE BIANCHE | F11: =SUM(SEZ.1!E11,SEZ.2!E11,SEZ.3!E11,SEZ.4!E11,SEZ.5!E11,SEZ.6!E11) -> 79
C12: SCHEDE NULLE | F12: =SUM(SEZ.1!E12,SEZ.2!E12,SEZ.3!E12,SEZ.4!E12,SEZ.5!E12,SEZ.6!E12) -> 84
C13: SCHEDE contestate e provvisoriamente non attribuite | F13: =SUM(SEZ.1!E13,SEZ.2!E13,SEZ.3!E13,SEZ.4!E13,SEZ.5!E13,SEZ.6!E13) -> 0
C14: Totale Schede NON VALIDE | F14: =SUM(F11:F13) -> 163

Sheet 1
B2: SCRUTINIO SENATO - SEZIONE 1
B4: NUMERO CANDIDATO UNINOMINALE | C4: COGNOME E NOME | D4: TOTALE VOTI VALIDI CANDIDATO UNINOMINALE | E4: DI CUI VOTI ESPRESSI AL SOLO CANDIDATO UNINOMINALE | F4: N. LISTE | G4: LISTA COLLEGATA | H4: VOTI ESPRESSI PER LE LISTE
B5: 1 | C5: BIZZARRO Francecso | D5: =SUM(E5,H5) -> 7 | F5: 1 | G5: ITALIA AGLI ITALIANI | H5: 7
B7: 2 | C7: MARTIGNANO Carlo | D7: =SUM(E7,H7) -> 3 | F7: 1 | G7: POTERE AL POPOLO | H7: 3
B9: 3 | C9: ROMANO Girolamo | D9: =SUM(E9,H9) -> 1 | F9: 1 | G9: LISTA DEL POPOLO | H9: 1
C10: BELLANOVA Teresa | D10: =SUM(D11:D14) -> 65 | E10: =SUM(E11:E14) -> 0
B11: 4 | C11: BELLANOVA Teresa | D11: =SUM(E11,H11) -> 4 | F11: 1 | G11: ITALIA EUROPA INSIEME | H11: 4
D12: =SUM(E12,H12) -> 54 | F12: 2 | G12: PARTITO DEMOCRATICO | H12: 54
D13: =SUM(E13,H13) -> 5 | F13: 3 | G13: CIVICA POPOLARE LORENZIN | H13: 5
D14: =SUM(E14,H14) -> 2 | F14: 4 | G14: +EUROPA | H14: 2
B16: 5 | C16: DE CARLO Marco | D16: =SUM(E16,H16) -> 5 | E16: 1 | F16: 1 | G16: IL POPOLO DELLA FAMIGLIA | H16: 4
B18: 6 | C18: ADASHA Morgan Daysi | D18: =SUM(E18,H18) -> 1 | F18: 1 | G18: PARTITO COMUNISTA | H18: 1
B20: 7 | C20: LECCISO Felice | D20: =SUM(E20,H20) -> 1 | F20: 1 | G20: CASAPOUND ITALIA | H20: 1
B22: 8 | C22: LEZZI Barbara | D22: =SUM(E22,H22) -> 170 | E22: 8 | F22: 1 | G22: MOVIMENTO 5 STELLE | H22: 162
C23: CARIDDI Luciano | D23: =SUM(D24:D27) -> 273 | E23: =SUM(E24:E27) -> 3
B24: 9 | C24: CARIDDI Luciano | D24: =SUM(E24,H24) -> 133 | F24: 1 | G24: FORZA ITALIA | H24: 133
D25: =SUM(E25,H25) -> 57 | E25: 3 | F25: 2 | G25: LEGA NORD | H25: 54
D26: =SUM(E26,H26) -> 39 | F26: 3 | G26: NOI CON L'ITALIA | H26: 39
D27: =SUM(E27,H27) -> 44 | F27: 4 | G27: FRATELLI D'ITALIA | H27: 44
B29: 10 | C29: D'ALEMA Massimo | D29: =SUM(E29,H29) -> 11 | E29: 1 | F29: 1 | G29: LIBERI E UGUALI | H29: 10
B31: 11 | C31: SCAVO Pasqua | D31: =SUM(E31,H31) -> 0 | F31: 1 | G31: PARTITO REPUBBLICANO ITALIANO-ALA
B33: TOTALE VOTI VALIDI (A1=A2+A3) | D33: =SUM(D5,D7,D9,D11,D12,D13,D14,D16,D18,D20,D22,D24,D25,D26,D27,D29,D31) -> 537 | E33: =SUM(E5,E7,E9,E11:E14,E16,E18,E20,E22,E24:E27,E29,E31) -> 13 | H33: =SUM(H5:H31) -> 524
D34: A1 | E34: A2 | H34: A3
G36: SCHEDE BIANCHE | H36: 17
G37: SCHEDE NULLE | H37: 13
G38: SCHEDE CONTESTATE | H38: =SEZ.1!E13 -> 0
G39: VOTANTI IN TOTALE | H39: =SUM(D33,H36:H38) -> 567 | I39: =IF(H39=SEZ.1!E7,"OK","NO") -> OK
H41: =IF(I39="NO",H39-SEZ.1!E7,"") -> 

Sheet 2
B2: SCRUTINIO SENATO - SEZIONE 2
B4: NUMERO CANDIDATO UNINOMINALE | C4: COGNOME E NOME | D4: TOTALE VOTI VALIDI CANDIDATO UNINOMINALE | E4: DI CUI VOTI ESPRESSI AL SOLO CANDIDATO UNINOMINALE | F4: N. LISTE | G4: LISTA COLLEGATA | H4: VOTI ESPRESSI PER LE LISTE
B5: 1 | C5: BIZZARRO Francecso | D5: =SUM(E5,H5) -> 5 | F5: 1 | G5: ITALIA AGLI ITALIANI | H5: 5
B7: 2 | C7: MARTIGNANO Carlo | D7: =SUM(E7,H7) -> 2 | F7: 1 | G7: POTERE AL POPOLO | H7: 2
B9: 3 | C9: ROMANO Girolamo | D9: =SUM(E9,H9) -> 1 | F9: 1 | G9: LISTA DEL POPOLO | H9: 1
C10: BELLANOVA Teresa | D10: =SUM(D11:D14) -> 105 | E10: =SUM(E11:E14) -> 25
B11: 4 | C11: BELLANOVA Teresa | D11: =SUM(E11,H11) -> 3 | F11: 1 | G11: ITALIA EUROPA INSIEME | H11: 3
D12: =SUM(E12,H12) -> 95 | E12: 25 | F12: 2 | G12: PARTITO DEMOCRATICO | H12: 70
D13: =SUM(E13,H13) -> 4 | F13: 3 | G13: CIVICA POPOLARE LORENZIN | H13: 4
D14: =SUM(E14,H14) -> 3 | F14: 4 | G14: +EUROPA | H14: 3
B16: 5 | C16: DE CARLO Marco | D16: =SUM(E16,H16) -> 7 | F16: 1 | G16: IL POPOLO DELLA FAMIGLIA | H16: 7
B18: 6 | C18: ADASHA Morgan Daysi | D18: =SUM(E18,H18) -> 1 | F18: 1 | G18: PARTITO COMUNISTA | H18: 1
B20: 7 | C20: LECCISO Felice | D20: =SUM(E20,H20) -> 0 | F20: 1 | G20: CASAPOUND ITALIA
B22: 8 | C22: LEZZI Barbara | D22: =SUM(E22,H22) -> 144 | E22: 5 | F22: 1 | G22: MOVIMENTO 5 STELLE | H22: 139
C23: CARIDDI Luciano | D23: =SUM(D24:D27) -> 212 | E23: =SUM(E24:E27) -> 5
B24: 9 | C24: CARIDDI Luciano | D24: =SUM(E24,H24) -> 117 | F24: 1 | G24: FORZA ITALIA | H24: 117
D25: =SUM(E25,H25) -> 23 | E25: 5 | F25: 2 | G25: LEGA NORD | H25: 18
D26: =SUM(E26,H26) -> 28 | F26: 3 | G26: NOI CON L'ITALIA | H26: 28
D27: =SUM(E27,H27) -> 44 | F27: 4 | G27: FRATELLI D'ITALIA | H27: 44
B29: 10 | C29: D'ALEMA Massimo | D29: =SUM(E29,H29) -> 11 | E29: 1 | F29: 1 | G29: LIBERI E UGUALI | H29: 10
B31: 11 | C31: SCAVO Pasqua | D31: =SUM(E31,H31) -> 1 | F31: 1 | G31: PARTITO REPUBBLICANO ITALIANO-ALA | H31: 1
B33: TOTALE VOTI VALIDI (A1=A2+A3) | D33: =SUM(D5,D7,D9,D11,D12,D13,D14,D16,D18,D20,D22,D24,D25,D26,D27,D29,D31) -> 489 | E33: =SUM(E5,E7,E9,E11:E14,E16,E18,E20,E22,E24:E27,E29,E31) -> 36 | H33: =SUM(H5:H31) -> 453
D34: A1 | E34: A2 | H34: A3
G36: SCHEDE BIANCHE | H36: 11
G37: SCHEDE NULLE | H37: 8
G38: SCHEDE CONTESTATE | H38: =SEZ.2!E13 -> 0
G39: VOTANTI IN TOTALE | H39: =SUM(D33,H36:H38) -> 508 | I39: =IF(H39=SEZ.2!E7,"OK","NO") -> OK
H41: =IF(I39="NO",+H39-SEZ.2!E7,"") -> 

Sheet 3
B2: SCRUTINIO SENATO - SEZIONE 3
B4: NUMERO CANDIDATO UNINOMINALE | C4: COGNOME E NOME | D4: TOTALE VOTI VALIDI CANDIDATO UNINOMINALE | E4: DI CUI VOTI ESPRESSI AL SOLO CANDIDATO UNINOMINALE | F4: N. LISTE | G4: LISTA COLLEGATA | H4: VOTI ESPRESSI PER LE LISTE
B5: 1 | C5: BIZZARRO Francecso | D5: =SUM(E5,H5) -> 6 | E5: 0 | F5: 1 | G5: ITALIA AGLI ITALIANI | H5: 6
B7: 2 | C7: MARTIGNANO Carlo | D7: =SUM(E7,H7) -> 2 | E7: 0 | F7: 1 | G7: POTERE AL POPOLO | H7: 2
B9: 3 | C9: ROMANO Girolamo | D9: =SUM(E9,H9) -> 0 | F9: 1 | G9: LISTA DEL POPOLO
C10: BELLANOVA Teresa | D10: =SUM(D11:D14) -> 60
B11: 4 | C11: BELLANOVA Teresa | D11: =SUM(E11,H11) -> 1 | F11: 1 | G11: ITALIA EUROPA INSIEME | H11: 1
D12: =SUM(E12,H12) -> 56 | E12: 2 | F12: 2 | G12: PARTITO DEMOCRATICO | H12: 54
D13: =SUM(E13,H13) -> 1 | F13: 3 | G13: CIVICA POPOLARE LORENZIN | H13: 1
D14: =SUM(E14,H14) -> 2 | F14: 4 | G14: +EUROPA | H14: 2
B16: 5 | C16: DE CARLO Marco | D16: =SUM(E16,H16) -> 4 | F16: 1 | G16: IL POPOLO DELLA FAMIGLIA | H16: 4
B18: 6 | C18: ADASHA Morgan Daysi | D18: =SUM(E18,H18) -> 2 | F18: 1 | G18: PARTITO COMUNISTA | H18: 2
B20: 7 | C20: LECCISO Felice | D20: =SUM(E20,H20) -> 0 | F20: 1 | G20: CASAPOUND ITALIA
B22: 8 | C22: LEZZI Barbara | D22: =SUM(E22,H22) -> 144 | F22: 1 | G22: MOVIMENTO 5 STELLE | H22: 144
C23: CARIDDI Luciano | D23: =SUM(D24:D27) -> 239 | E23: =SUM(E24:E27) -> 2
B24: 9 | C24: CARIDDI Luciano | D24: =SUM(E24,H24) -> 143 | F24: 1 | G24: FORZA ITALIA | H24: 143
D25: =SUM(E25,H25) -> 49 | E25: 2 | F25: 2 | G25: LEGA NORD | H25: 47
D26: =SUM(E26,H26) -> 20 | F26: 3 | G26: NOI CON L'ITALIA | H26: 20
D27: =SUM(E27,H27) -> 27 | F27: 4 | G27: FRATELLI D'ITALIA | H27: 27
B29: 10 | C29: D'ALEMA Massimo | D29: =SUM(E29,H29) -> 17 | F29: 1 | G29: LIBERI E UGUALI | H29: 17
B31: 11 | C31: SCAVO Pasqua | D31: =SUM(E31,H31) -> 0 | F31: 1 | G31: PARTITO REPUBBLICANO ITALIANO-ALA
B33: TOTALE VOTI VALIDI (A1=A2+A3) | D33: =SUM(D5,D7,D9,D11,D12,D13,D14,D16,D18,D20,D22,D24,D25,D26,D27,D29,D31) -> 474 | E33: =SUM(E5,E7,E9,E11:E14,E16,E18,E20,E22,E24:E27,E29,E31) -> 4 | H33: =SUM(H5:H31) -> 470
D34: A1 | E34: A2 | H34: A3
G36: SCHEDE BIANCHE | H36: 11
G37: SCHEDE NULLE | H37: 6
G38: SCHEDE CONTESTATE | H38: =SEZ.3!E13 -> 0
G39: VOTANTI IN TOTALE | H39: =SUM(D33,H36:H38) -> 491 | I39: =IF(H39=SEZ.3!$E$7,"OK","NO") -> OK
H41: =IF(I39="NO",+H39-SEZ.3!$E$7,"") -> 

Sheet 4
B2: SCRUTINIO SENATO - SEZIONE 4
B4: NUMERO CANDIDATO UNINOMINALE | C4: COGNOME E NOME | D4: TOTALE VOTI VALIDI CANDIDATO UNINOMINALE | E4: DI CUI VOTI ESPRESSI AL SOLO CANDIDATO UNINOMINALE | F4: N. LISTE | G4: LISTA COLLEGATA | H4: VOTI ESPRESSI PER LE LISTE
B5: 1 | C5: BIZZARRO Francecso | D5: =SUM(E5,H5) -> 9 | E5: 0 | F5: 1 | G5: ITALIA AGLI ITALIANI | H5: 9
B7: 2 | C7: MARTIGNANO Carlo | D7: =SUM(E7,H7) -> 4 | E7: 2 | F7: 1 | G7: POTERE AL POPOLO | H7: 2
B9: 3 | C9: ROMANO Girolamo | D9: =SUM(E9,H9) -> 1 | E9: 0 | F9: 1 | G9: LISTA DEL POPOLO | H9: 1
C10: BELLANOVA Teresa | D10: =SUM(D11:D14) -> 93
B11: 4 | C11: BELLANOVA Teresa | D11: =SUM(E11,H11) -> 7 | E11: 5 | F11: 1 | G11: ITALIA EUROPA INSIEME | H11: 2
D12: =SUM(E12,H12) -> 83 | F12: 2 | G12: PARTITO DEMOCRATICO | H12: 83
D13: =SUM(E13,H13) -> 0 | F13: 3 | G13: CIVICA POPOLARE LORENZIN | H13: 0
D14: =SUM(E14,H14) -> 3 | F14: 4 | G14: +EUROPA | H14: 3
B16: 5 | C16: DE CARLO Marco | D16: =SUM(E16,H16) -> 11 | E16: 0 | F16: 1 | G16: IL POPOLO DELLA FAMIGLIA | H16: 11
B18: 6 | C18: ADASHA Morgan Daysi | D18: =SUM(E18,H18) -> 1 | E18: 0 | F18: 1 | G18: PARTITO COMUNISTA | H18: 1
B20: 7 | C20: LECCISO Felice | D20: =SUM(E20,H20) -> 3 | E20: 0 | F20: 1 | G20: CASAPOUND ITALIA | H20: 3
B22: 8 | C22: LEZZI Barbara | D22: =SUM(E22,H22) -> 221 | E22: 16 | F22: 1 | G22: MOVIMENTO 5 STELLE | H22: 205
C23: CARIDDI Luciano | D23: =SUM(D24:D27) -> 285 | E23: =SUM(E24:E27) -> 4
B24: 9 | C24: CARIDDI Luciano | D24: =SUM(E24,H24) -> 165 | E24: 4 | F24: 1 | G24: FORZA ITALIA | H24: 161
D25: =SUM(E25,H25) -> 52 | F25: 2 | G25: LEGA NORD | H25: 52
D26: =SUM(E26,H26) -> 19 | F26: 3 | G26: NOI CON L'ITALIA | H26: 19
D27: =SUM(E27,H27) -> 49 | F27: 4 | G27: FRATELLI D'ITALIA | H27: 49
B29: 10 | C29: D'ALEMA Massimo | D29: =SUM(E29,H29) -> 21 | E29: 2 | F29: 1 | G29: LIBERI E UGUALI | H29: 19
B31: 11 | C31: SCAVO Pasqua | D31: =SUM(E31,H31) -> 0 | E31: 0 | F31: 1 | G31: PARTITO REPUBBLICANO ITALIANO-ALA | H31: 0
B33: TOTALE VOTI VALIDI (A1=A2+A3) | D33: =SUM(D5,D7,D9,D11,D12,D13,D14,D16,D18,D20,D22,D24,D25,D26,D27,D29,D31) -> 649 | E33: =SUM(E5,E7,E9,E11:E14,E16,E18,E20,E22,E24:E27,E29,E31) -> 29 | H33: =SUM(H5:H31) -> 620
D34: A1 | E34: A2 | H34: A3
G36: SCHEDE BIANCHE | H36: 17
G37: SCHEDE NULLE | H37: 9
G38: SCHEDE CONTESTATE | H38: =SEZ.4!E13 -> 0
G39: VOTANTI IN TOTALE | H39: =SUM(D33,H36:H38) -> 675 | I39: =IF(H39=SEZ.4!E7,"OK","NO") -> OK
H41: =IF(I39="NO",+H39-SEZ.4!E7,"") -> 

Sheet 5
B2: SCRUTINIO SENATO - SEZIONE 5
B4: NUMERO CANDIDATO UNINOMINALE | C4: COGNOME E NOME | D4: TOTALE VOTI VALIDI CANDIDATO UNINOMINALE | E4: DI CUI VOTI ESPRESSI AL SOLO CANDIDATO UNINOMINALE | F4: N. LISTE | G4: LISTA COLLEGATA | H4: VOTI ESPRESSI PER LE LISTE
B5: 1 | C5: BIZZARRO Francecso | D5: =SUM(E5,H5) -> 4 | E5: 1 | F5: 1 | G5: ITALIA AGLI ITALIANI | H5: 3
B7: 2 | C7: MARTIGNANO Carlo | D7: =SUM(E7,H7) -> 3 | F7: 1 | G7: POTERE AL POPOLO | H7: 3
B9: 3 | C9: ROMANO Girolamo | D9: =SUM(E9,H9) -> 0 | F9: 1 | G9: LISTA DEL POPOLO
C10: BELLANOVA Teresa | D10: =SUM(D11:D14) -> 79 | E10: =SUM(E11:E14) -> 2
B11: 4 | C11: BELLANOVA Teresa | D11: =SUM(E11,H11) -> 0 | F11: 1 | G11: ITALIA EUROPA INSIEME
D12: =SUM(E12,H12) -> 72 | E12: 2 | F12: 2 | G12: PARTITO DEMOCRATICO | H12: 70
D13: =SUM(E13,H13) -> 0 | F13: 3 | G13: CIVICA POPOLARE LORENZIN | H13: 0
D14: =SUM(E14,H14) -> 7 | F14: 4 | G14: +EUROPA | H14: 7
B16: 5 | C16: DE CARLO Marco | D16: =SUM(E16,H16) -> 1 | F16: 1 | G16: IL POPOLO DELLA FAMIGLIA | H16: 1
B18: 6 | C18: ADASHA Morgan Daysi | D18: =SUM(E18,H18) -> 3 | F18: 1 | G18: PARTITO COMUNISTA | H18: 3
B20: 7 | C20: LECCISO Felice | D20: =SUM(E20,H20) -> 1 | F20: 1 | G20: CASAPOUND ITALIA | H20: 1
B22: 8 | C22: LEZZI Barbara | D22: =SUM(E22,H22) -> 157 | E22: 6 | F22: 1 | G22: MOVIMENTO 5 STELLE | H22: 151
C23: CARIDDI Luciano | D23: =SUM(D24:D27) -> 255 | E23: =SUM(E24:E27) -> 6
B24: 9 | C24: CARIDDI Luciano | D24: =SUM(E24,H24) -> 139 | E24: 6 | F24: 1 | G24: FORZA ITALIA | H24: 133
D25: =SUM(E25,H25) -> 53 | F25: 2 | G25: LEGA NORD | H25: 53
D26: =SUM(E26,H26) -> 36 | F26: 3 | G26: NOI CON L'ITALIA | H26: 36
D27: =SUM(E27,H27) -> 27 | F27: 4 | G27: FRATELLI D'ITALIA | H27: 27
B29: 10 | C29: D'ALEMA Massimo | D29: =SUM(E29,H29) -> 14 | E29: 2 | F29: 1 | G29: LIBERI E UGUALI | H29: 12
B31: 11 | C31: SCAVO Pasqua | D31: =SUM(E31,H31) -> 1 | F31: 1 | G31: PARTITO REPUBBLICANO ITALIANO-ALA | H31: 1
B33: TOTALE VOTI VALIDI (A1=A2+A3) | D33: =SUM(D5,D7,D9,D11,D12,D13,D14,D16,D18,D20,D22,D24,D25,D26,D27,D29,D31) -> 518 | E33: =SUM(E5,E7,E9,E11:E14,E16,E18,E20,E22,E24:E27,E29,E31) -> 17 | H33: =SUM(H5:H31) -> 501
D34: A1 | E34: A2 | H34: A3
G36: SCHEDE BIANCHE | H36: 15
G37: SCHEDE NULLE | H37: 19
G38: SCHEDE CONTESTATE | H38: =SEZ.5!E13 -> 0
G39: VOTANTI IN TOTALE | H39: =SUM(D33,H36:H38) -> 552 | I39: =IF(H39=SEZ.5!E7,"OK","NO") -> OK
H41: =IF(I39="NO",+H39-SEZ.5!E7,"") -> 

Sheet 6
B2: SCRUTINIO SENATO - SEZIONE 6
B4: N. CANDIDATO UNINOMINALE | C4: COGNOME E NOME | D4: TOTALE VOTI VALIDI CANDIDATO UNINOMINALE | E4: DI CUI VOTI ESPRESSI AL SOLO CANDIDATO UNINOMINALE | F4: N. LISTE | G4: LISTA COLLEGATA | H4: VOTI ESPRESSI PER LE LISTE
B5: 1 | C5: BIZZARRO Francecso | D5: =SUM(E5,H5) -> 8 | E5: 1 | F5: 1 | G5: ITALIA AGLI ITALIANI | H5: 7
B7: 2 | C7: MARTIGNANO Carlo | D7: =SUM(E7,H7) -> 5 | E7: 0 | F7: 1 | G7: POTERE AL POPOLO | H7: 5
B9: 3 | C9: ROMANO Girolamo | D9: =SUM(E9,H9) -> 0 | E9: 0 | F9: 1 | G9: LISTA DEL POPOLO | H9: 0
C10: BELLANOVA Teresa | D10: =SUM(D11:D14) -> 72 | E10: =SUM(E11:E14) -> 4
B11: 4 | C11: BELLANOVA Teresa | D11: =SUM(E11,H11) -> 2 | F11: 1 | G11: ITALIA EUROPA INSIEME | H11: 2
D12: =SUM(E12,H12) -> 61 | E12: 4 | F12: 2 | G12: PARTITO DEMOCRATICO | H12: 57
D13: =SUM(E13,H13) -> 0 | F13: 3 | G13: CIVICA POPOLARE LORENZIN | H13: 0
D14: =SUM(E14,H14) -> 9 | F14: 4 | G14: +EUROPA | H14: 9
B16: 5 | C16: DE CARLO Marco | D16: =SUM(E16,H16) -> 8 | E16: 0 | F16: 1 | G16: IL POPOLO DELLA FAMIGLIA | H16: 8
B18: 6 | C18: ADASHA Morgan Daysi | D18: =SUM(E18,H18) -> 1 | E18: 0 | F18: 1 | G18: PARTITO COMUNISTA | H18: 1
B20: 7 | C20: LECCISO Felice | D20: =SUM(E20,H20) -> 1 | E20: 0 | F20: 1 | G20: CASAPOUND ITALIA | H20: 1
B22: 8 | C22: LEZZI Barbara | D22: =SUM(E22,H22) -> 184 | E22: 20 | F22: 1 | G22: MOVIMENTO 5 STELLE | H22: 164
C23: CARIDDI Luciano | D23: =SUM(D24:D27) -> 202 | E23: =SUM(E24:E27) -> 6
B24: 9 | C24: CARIDDI Luciano | D24: =SUM(E24,H24) -> 114 | E24: 6 | F24: 1 | G24: FORZA ITALIA | H24: 108
D25: =SUM(E25,H25) -> 32 | F25: 2 | G25: LEGA NORD | H25: 32
D26: =SUM(E26,H26) -> 27 | F26: 3 | G26: NOI CON L'ITALIA | H26: 27
D27: =SUM(E27,H27) -> 29 | F27: 4 | G27: FRATELLI D'ITALIA | H27: 29
B29: 10 | C29: D'ALEMA Massimo | D29: =SUM(E29,H29) -> 17 | E29: 0 | F29: 1 | G29: LIBERI E UGUALI | H29: 17
B31: 11 | C31: SCAVO Pasqua | D31: =SUM(E31,H31) -> 0 | E31: 0 | F31: 1 | G31: PARTITO REPUBBLICANO ITALIANO-ALA | H31: 0
B33: TOTALE VOTI VALIDI (A1=A2+A3) | D33: =SUM(D5,D7,D9,D11,D12,D13,D14,D16,D18,D20,D22,D24,D25,D26,D27,D29,D31) -> 498 | E33: =SUM(E5,E7,E9,E11:E14,E16,E18,E20,E22,E24:E27,E29,E31) -> 31 | H33: =SUM(H5:H31) -> 467
D34: A1 | E34: A2 | H34: A3
G36: SCHEDE BIANCHE | H36: 8
G37: SCHEDE NULLE | H37: 29
G38: SCHEDE CONTESTATE | H38: =SEZ.6!E13 -> 0
G39: VOTANTI IN TOTALE | H39: =SUM(D33,H36:H38) -> 535 | I39: =IF(H39=SEZ.6!E7,"OK","NO") -> OK
H41: =IF(I39="NO",+H39-SEZ.6!E7,"") -> 

Sheet Candidati
B3: CANDIDATO | D3: VOTI
B4: 1 | C4: =Scrutinio!O7 -> BIZZARRO | D4: =Scrutinio!O17 -> 39
B5: 2 | C5: =Scrutinio!P7 -> MARTIGNANO | D5: =Scrutinio!P17 -> 19
B6: 3 | C6: =Scrutinio!Q7 -> ROMANO | D6: =Scrutinio!Q17 -> 3
B7: 4 | C7: =Scrutinio!R7 -> BELLANOVA | D7: =Scrutinio!R17 -> 474
B8: 5 | C8: =Scrutinio!S7 -> DE CARLO | D8: =Scrutinio!S17 -> 36
B9: 6 | C9: =Scrutinio!T7 -> ADASHA | D9: =Scrutinio!T17 -> 9
B10: 7 | C10: =Scrutinio!U7 -> LECCISO | D10: =Scrutinio!U17 -> 6
B11: 8 | C11: =Scrutinio!V7 -> LEZZI | D11: =Scrutinio!V17 -> 1020
B12: 9 | C12: =Scrutinio!W7 -> CARIDDI | D12: =Scrutinio!W17 -> 1466
B13: 10 | C13: =Scrutinio!X7 -> D'ALEMA | D13: =Scrutinio!X17 -> 91
B14: 11 | C14: =Scrutinio!Y7 -> SCAVO | D14: =Scrutinio!Y17 -> 2
